fUST/lending_fUST_20250121
["ID","MTS","AMOUNT","RATE_DAILY","PERIOD"]
[349711985,1737389447721,-500.0,0.0002219,3]
[349711986,1737389447733,-500.0,0.0002219,3]
[349711988,1737389447743,-500.0,0.0002219,3]
[349711991,1737389447752,-500.0,0.0002219,3]
[349711993,1737389447762,-500.0,0.00022191,3]
[349711995,1737389447771,-500.0,0.00022191,3]
[349711997,1737389447780,-500.0,0.00022191,3]
[349711999,1737389447790,-500.0,0.00022191,3]
[349712001,1737389447799,-500.0,0.00022191,3]
[349712003,1737389447808,-500.0,0.00022191,3]
[349712005,1737389447817,-267.23174967,0.00022191,3]
[349712007,1737389447827,-500.0,0.00022191,3]
[349712009,1737389447836,-500.0,0.00022191,3]
[349712011,1737389447845,-503.62394129,0.00022191,3]
[349712013,1737389447854,-619.82840531,0.00022191,3]
[349712015,1737389447863,-500.0,0.00022191,3]
[349712017,1737389447872,-500.0,0.00022191,3]
[349712019,1737389447881,-500.0,0.00022191,3]
[349712021,1737389447891,-500.0,0.00022191,3]
[349712023,1737389447900,-500.0,0.00022191,3]
[349712025,1737389447909,-500.0,0.00022191,3]
[349712026,1737389447918,-500.0,0.00022191,3]
[349712029,1737389447927,-500.0,0.00022191,3]
[349712031,1737389447936,-500.0,0.00022191,3]
[349712033,1737389447945,-500.0,0.00022191,3]
[349712035,1737389447955,-500.0,0.00022191,3]
[349712037,1737389447964,-500.0,0.00022191,3]
[349712039,1737389447974,-575.04674579,0.00022191,3]
[349712041,1737389447985,-500.0,0.00022191,3]
[349712043,1737389447995,-500.0,0.00022191,3]
[349712045,1737389448004,-575.00035546,0.00022191,3]
[349712047,1737389448013,-500.0,0.00022191,3]
[349712049,1737389448022,-500.0,0.00022191,3]
[349712051,1737389448033,-500.0,0.00022191,3]
[349712053,1737389448042,-500.0,0.00022191,3]
[349712055,1737389448052,-500.0,0.00022191,3]
[349712057,1737389448061,-500.0,0.00022191,3]
[349712059,1737389448071,-500.0,0.00022191,3]
[349712061,1737389448081,-500.0,0.00022191,3]
[349712063,1737389448090,-500.0,0.00022191,3]
[349712065,1737389448099,-220.30625231,0.00022191,3]
[349712070,1737389448136,-500.0,0.00021917,3]
[349712072,1737389448146,-311.39243096,0.00022191,3]
[349712074,1737389448156,-500.0,0.00022191,3]
[349712076,1737389448166,-500.0,0.00022191,3]
[349712078,1737389448176,-521.72516624,0.00022191,3]
[349712080,1737389448186,-509.36848022,0.00022191,3]
[349712092,1737389448291,-500.0,0.00022191,3]
[349712094,1737389448302,-500.0,0.00022191,3]
[349712096,1737389448312,-500.0,0.00022191,3]
[349712098,1737389448322,-500.0,0.00022191,3]
[349712100,1737389448332,-500.0,0.00022191,3]
[349712102,1737389448342,-500.0,0.00022191,3]
[349712104,1737389448351,-500.0,0.00022191,3]
[349712106,1737389448362,-500.0,0.00022191,3]
[349712108,1737389448371,-500.0,0.00022191,3]
[349712110,1737389448384,-500.0,0.00022191,3]
[349712112,1737389448393,-500.0,0.00022191,3]
[349712114,1737389448403,-500.0,0.00022191,3]
[349712116,1737389448412,-500.0,0.00022191,3]
[349712118,1737389448422,-500.0,0.00022191,2]
[349712120,1737389448431,-500.0,0.00022191,3]
[349712122,1737389448441,-486.91169362,0.00022191,3]
[349712124,1737389448450,-500.0,0.00022191,3]
[349712126,1737389448460,-500.0,0.00022191,3]
[349712128,1737389448471,-500.0,0.00022191,3]
[349712130,1737389448485,-500.0,0.00022191,3]
[349712132,1737389448496,-500.0,0.00022191,3]
[349712134,1737389448508,-500.0,0.00022191,3]
[349712136,1737389448519,-500.0,0.00022191,3]
[349712138,1737389448530,-500.0,0.00022191,3]
[349712140,1737389448541,-500.0,0.00022191,3]
[349712142,1737389448553,-500.0,0.00022191,3]
[349712144,1737389448563,-500.0,0.00022191,3]
[349712146,1737389448574,-406.72782996,0.00022191,3]
[349712148,1737389448585,-500.0,0.00022191,3]
[349712150,1737389448596,-2492.35,0.00022191,3]
[349712152,1737389448606,-500.0,0.00022191,3]
[349712154,1737389448617,-500.0,0.00022191,3]
[349712156,1737389448628,-500.0,0.00022191,3]
[349712158,1737389448638,-500.0,0.00022191,3]
[349712160,1737389448652,-523.66956638,0.00022191,3]
[349712162,1737389448662,-500.0,0.00022191,3]
[349712164,1737389448672,-500.0,0.00022191,3]
[349712166,1737389448683,-530.51,0.00022191,3]
[349712168,1737389448693,-500.0,0.00022191,3]
[349712170,1737389448703,-500.0,0.00022191,3]
[349712172,1737389448713,-500.0,0.00022191,3]
[349712173,1737389448725,-500.0,0.00022191,3]
[349712176,1737389448742,-500.0,0.00022191,3]
[349712178,1737389448751,-223.81653082,0.00022191,3]
[349712180,1737389448761,-500.0,0.00022191,3]
[349712182,1737389448771,-500.0,0.00022191,3]
[349712184,1737389448781,-300.0,0.00022191,3]
[349712186,1737389448791,-151.84,0.00022191,3]
[349712188,1737389448801,-500.0,0.00022191,3]
[349712190,1737389448811,-500.0,0.00022191,3]
[349712192,1737389448822,-219.45488076,0.00022191,3]
[349712194,1737389448831,-500.0,0.00022191,3]
[349712196,1737389448841,-531.22,0.00022191,3]
[349712198,1737389448850,-500.0,0.00022191,3]
[349712200,1737389448860,-500.0,0.00022191,3]
[349712202,1737389448870,-569.54463316,0.00022191,3]
[349712204,1737389448880,-500.0,0.00022191,3]
[349712206,1737389448890,-500.0,0.00022191,3]
[349712208,1737389448900,-318.55170798,0.00022191,3]
[349712210,1737389448910,-500.0,0.00022191,3]
[349712212,1737389448920,-500.0,0.00022191,3]
[349712214,1737389448930,-500.0,0.00022191,3]
[349712216,1737389448940,-500.0,0.00022191,3]
[349712218,1737389448949,-500.0,0.00022191,3]
[349712220,1737389448959,-500.0,0.00022191,3]
[349712222,1737389448968,-500.0,0.00022191,3]
[349712224,1737389448978,-500.0,0.00022191,3]
[349712226,1737389448991,-500.0,0.00022191,3]
[349712228,1737389449004,-500.0,0.00022191,3]
[349712230,1737389449014,-713.46,0.00022191,3]
[349712232,1737389449024,-500.0,0.00022191,3]
[349712234,1737389449034,-500.0,0.00022191,3]
[349712236,1737389449043,-500.0,0.00022191,3]
[349712238,1737389449054,-500.0,0.00022191,3]
[349712240,1737389449063,-500.0,0.00022191,3]
[349712242,1737389449073,-500.0,0.00022191,3]
[349712244,1737389449083,-500.0,0.00022191,3]
[349712246,1737389449093,-500.0,0.00022191,3]
[349712248,1737389449103,-500.0,0.00022191,3]
[349712250,1737389449113,-500.0,0.00022191,3]
[349712252,1737389449123,-490.08645015,0.00022191,3]
[349712254,1737389449133,-500.0,0.00022191,3]
[349712256,1737389449143,-500.0,0.00022191,3]
[349712258,1737389449153,-500.0,0.00022191,3]
[349712260,1737389449163,-500.0,0.00022191,3]
[349712262,1737389449173,-500.0,0.00022191,3]
[349712264,1737389449184,-500.0,0.00022191,3]
[349712266,1737389449194,-500.0,0.00022191,3]
[349712268,1737389449204,-500.0,0.00022191,3]
[349712270,1737389449214,-379.17032955,0.00022191,3]
[349712272,1737389449224,-388.96718984,0.00022191,3]
[349712274,1737389449237,-500.0,0.00022191,3]
[349712276,1737389449247,-500.0,0.00022191,3]
[349712278,1737389449257,-500.0,0.00022191,3]
[349712280,1737389449266,-500.0,0.00022273,3]
[349712282,1737389449276,-1135.39,0.00022273,3]
[349712284,1737389449287,-500.0,0.00022273,3]
[349712286,1737389449297,-1608.7309395,0.00022279,3]
[349712288,1737389449307,-500.0,0.00022299,3]
[349712291,1737389449317,-500.0,0.0002232,3]
[349712293,1737389449328,-500.0,0.00022327,3]
[349712295,1737389449338,-500.0,0.00022327,3]
[349712297,1737389449348,-500.0,0.00022327,3]
[349712299,1737389449358,-500.0,0.00022327,3]
[349712301,1737389449368,-169.44,0.00022328,3]
[349712303,1737389449379,-500.0,0.00022328,3]
[349712305,1737389449390,-500.0,0.00022328,3]
[349712307,1737389449401,-500.0,0.00022328,3]
[349712309,1737389449412,-502.34344684,0.00022328,3]
[349712311,1737389449423,-500.0,0.00022328,3]
[349712313,1737389449432,-538.23756892,0.00022328,3]
[349712315,1737389449442,-500.0,0.00022328,3]
[349712317,1737389449452,-500.0,0.00022328,3]
[349712319,1737389449462,-621.15,0.00022328,3]
[349712321,1737389449472,-500.0,0.00022328,3]
[349712323,1737389449482,-180.78,0.00022328,3]
[349712325,1737389449492,-2492.35,0.00022328,3]
[349712327,1737389449503,-530.51,0.00022328,3]
[349712329,1737389449513,-241.68578211,0.00022328,3]
[349712331,1737389449523,-500.0,0.00022328,3]
[349712333,1737389449534,-500.0,0.00022328,3]
[349712335,1737389449544,-500.0,0.00022328,3]
[349712337,1737389449554,-531.22,0.00022328,3]
[349712339,1737389449564,-500.0,0.00022328,3]
[349712341,1737389449574,-500.0,0.00022328,3]
[349712343,1737389449584,-500.0,0.00022328,3]
[349712345,1737389449594,-500.0,0.00022328,3]
[349712347,1737389449605,-500.0,0.00022328,3]
[349712349,1737389449615,-500.0,0.00022328,3]
[349712351,1737389449625,-500.0,0.00022328,3]
[349712353,1737389449640,-713.46,0.00022328,3]
[349712355,1737389449650,-500.0,0.00022328,3]
[349712357,1737389449660,-500.0,0.00022328,3]
[349712359,1737389449671,-350.0,0.00022328,3]
[349712361,1737389449682,-500.0,0.00022328,3]
[349712364,1737389449694,-500.0,0.00022328,3]
[349712366,1737389449708,-407.18829591,0.00022328,3]
[349712368,1737389449718,-500.0,0.00022328,3]
[349712370,1737389449728,-500.0,0.00022328,3]
[349712372,1737389449741,-481.54566799,0.00022328,3]
[349712374,1737389449751,-500.0,0.00022328,3]
[349712375,1737389449760,-500.0,0.00022328,3]
[349712377,1737389449771,-500.0,0.00022328,3]
[349712379,1737389449781,-220.9646969,0.0002241,3]
[349712381,1737389449791,-1135.39,0.0002241,3]
[349712383,1737389449800,-500.0,0.0002241,3]
[349712385,1737389449811,-1608.7309395,0.00022417,3]
[349712388,1737389449820,-500.0,0.00022435,3]
[349712390,1737389449830,-500.0,0.00022464,3]
[349712392,1737389449840,-500.0,0.00022464,3]
[349712394,1737389449850,-500.0,0.00022465,3]
[349712396,1737389449860,-500.0,0.00022465,3]
[349712398,1737389449870,-500.0,0.00022465,3]
[349712400,1737389449880,-294.52484573,0.00022465,3]
[349712402,1737389449889,-2492.35,0.00022465,3]
[349712404,1737389449899,-530.51,0.00022465,3]
[349712406,1737389449909,-500.0,0.00022465,3]
[349712408,1737389449919,-500.0,0.00022465,3]
[349712410,1737389449928,-531.22,0.00022465,3]
[349712412,1737389449938,-500.0,0.00022465,3]
[349712414,1737389449948,-500.0,0.00022465,3]
[349712416,1737389449957,-500.0,0.00022465,3]
[349712418,1737389449967,-301.85053774,0.00022465,3]
[349712420,1737389449976,-280.58,0.00022465,3]
[349712422,1737389449986,-500.0,0.00022465,3]
[349712424,1737389449996,-713.46,0.00022465,3]
[349712426,1737389450006,-500.0,0.00022465,3]
[349712428,1737389450015,-485.86200779,0.00022465,3]
[349712430,1737389450025,-500.0,0.00022465,3]
[349712432,1737389450035,-500.0,0.00022465,3]
[349712434,1737389450044,-500.0,0.00022465,3]
[349712436,1737389450054,-500.0,0.00022465,3]
[349712438,1737389450063,-511.39507894,0.00022465,3]
[349712440,1737389450073,-1000.0,0.00022521,2]
[349712442,1737389450082,-1135.39,0.00022547,3]
[349712444,1737389450092,-1608.7309395,0.00022555,3]
[349712446,1737389450101,-500.0,0.00022601,3]
[349712448,1737389450111,-500.0,0.00022601,3]
[349712450,1737389450120,-500.0,0.00022601,3]
[349712452,1737389450129,-500.0,0.00022601,3]
[349712454,1737389450138,-507.33656874,0.00022601,3]
[349712456,1737389450148,-561.38,0.00022602,3]
[349712458,1737389450158,-500.0,0.00022602,3]
[349712460,1737389450167,-2492.35,0.00022602,3]
[349712462,1737389450177,-530.51,0.00022602,3]
[349712464,1737389450187,-500.0,0.00022602,3]
[349712466,1737389450196,-500.0,0.00022602,3]
[349712468,1737389450205,-531.22,0.00022602,3]
[349712470,1737389450214,-500.0,0.00022602,3]
[349712472,1737389450224,-230.24,0.00022602,3]
[349712474,1737389450234,-500.0,0.00022602,3]
[349712476,1737389450243,-500.0,0.00022602,3]
[349712478,1737389450252,-713.46,0.00022602,3]
[349712480,1737389450262,-500.0,0.00022602,3]
[349712482,1737389450272,-500.0,0.00022602,3]
[349712484,1737389450281,-500.0,0.00022602,3]
[349712486,1737389450291,-500.0,0.00022602,3]
[349712488,1737389450300,-500.0,0.00022621,2]
[349712490,1737389450309,-1135.39,0.00022684,3]
[349712492,1737389450319,-1608.7309395,0.00022693,3]
[349712494,1737389450329,-500.0,0.00022738,3]
[349712496,1737389450338,-500.0,0.00022738,3]
[349712498,1737389450348,-500.0,0.00022738,3]
[349712500,1737389450357,-500.0,0.00022739,3]
[349712502,1737389450370,-2492.35,0.00022739,3]
[349712504,1737389450380,-530.51,0.00022739,3]
[349712506,1737389450390,-500.0,0.00022739,3]
[349712508,1737389450400,-305.68,0.00022739,3]
[349712510,1737389450410,-531.22,0.00022739,3]
[349712512,1737389450419,-500.0,0.00022739,3]
[349712514,1737389450429,-500.0,0.00022739,3]
[349712516,1737389450439,-713.46,0.00022739,3]
[349712518,1737389450448,-500.0,0.00022739,3]
[349712520,1737389450458,-500.0,0.00022739,3]
[349712522,1737389450467,-500.0,0.00022748,3]
[349712523,1737389450477,-500.0,0.00022748,3]
[349712524,1737389450489,-336.28635912,0.00022748,3]
[349712525,1737389450593,-1135.39,0.00022821,3]
[349712526,1737389450604,-1608.7309395,0.00022831,3]
[349712528,1737389450615,-500.0,0.00022876,3]
[349712530,1737389450625,-2492.35,0.00022876,3]
[349712532,1737389450635,-530.51,0.00022876,3]
[349712534,1737389450650,-500.0,0.00022876,3]
[349712536,1737389450660,-531.22,0.00022876,3]
[349712538,1737389450670,-500.0,0.00022876,3]
[349712540,1737389450680,-500.0,0.00022876,3]
[349712542,1737389450691,-713.46,0.00022876,3]
[349712544,1737389450700,-500.0,0.00022876,3]
[349712546,1737389450709,-500.0,0.00022876,3]
[349712548,1737389450719,-1135.39,0.00022958,3]
[349712550,1737389450729,-1608.7309395,0.00022969,3]
[349712552,1737389450741,-1000.0,0.00023,23]
[349712554,1737389450751,-2998.20087238,0.00023,2]
[349712556,1737389450760,-1008.26665574,0.00023,10]
[349712558,1737389450770,-500.0,0.00023013,3]
[349712560,1737389450779,-2492.35,0.00023013,3]
[349712562,1737389450789,-530.51,0.00023013,3]
[349712564,1737389450798,-500.0,0.00023013,3]
[349712566,1737389450809,-531.22,0.00023013,3]
[349712568,1737389450818,-500.0,0.00023013,3]
[349712570,1737389450828,-500.0,0.00023013,3]
[349712572,1737389450837,-713.46,0.00023013,3]
[349712574,1737389450847,-204.00636478,0.00023013,3]
[349712576,1737389450856,-500.0,0.00023013,3]
[349712578,1737389450866,-491.126,0.0002305,2]
[349712581,1737389450876,-1135.39,0.00023095,3]
[349712583,1737389450886,-1608.7309395,0.00023107,3]
[349712585,1737389450895,-500.0,0.00023148,3]
[349712587,1737389450905,-500.0,0.00023148,3]
[349712589,1737389450914,-500.0,0.0002315,3]
[349712591,1737389450924,-2492.35,0.0002315,3]
[349712593,1737389450933,-530.51,0.0002315,3]
[349712595,1737389450942,-500.0,0.0002315,3]
[349712597,1737389450952,-531.22,0.0002315,3]
[349712599,1737389450961,-507.31812322,0.0002315,3]
[349712601,1737389450971,-713.46,0.0002315,3]
[349712603,1737389450984,-500.0,0.0002315,3]
[349712605,1737389450994,-372.62,0.000232,2]
[349712607,1737389451003,-1135.39,0.00023232,3]
[349712609,1737389451012,-500.0,0.00023244,3]
[349712611,1737389451022,-1608.7309395,0.00023245,3]
[349712613,1737389451031,-500.0,0.00023287,3]
[349712615,1737389451041,-2492.35,0.00023287,3]
[349712617,1737389451053,-530.51,0.00023287,3]
[349712619,1737389451063,-500.0,0.00023287,3]
[349712621,1737389451073,-531.22,0.00023287,3]
[349712623,1737389451082,-713.46,0.00023287,3]
[349712625,1737389451092,-500.0,0.00023287,3]
[349712627,1737389451103,-1135.39,0.00023369,3]
[349712629,1737389451112,-1608.7309395,0.00023383,3]
[349712631,1737389451122,-704.89,0.000234,2]
[349712633,1737389451133,-500.0,0.00023424,3]
[349712635,1737389451144,-2492.35,0.00023424,3]
[349712637,1737389451155,-530.51,0.00023424,3]
[349712639,1737389451165,-500.0,0.00023424,3]
[349712641,1737389451175,-531.22,0.00023424,3]
[349712643,1737389451185,-713.46,0.00023424,3]
[349712645,1737389451195,-500.0,0.00023424,3]
[349712647,1737389451206,-500.0,0.00023451,3]
[349712649,1737389451215,-500.0,0.00023451,3]
[349712651,1737389451226,-1135.39,0.00023506,3]
[349712653,1737389451240,-1608.7309395,0.00023521,3]
[349712655,1737389451250,-967.73175196,0.00023522,2]
[349712657,1737389451260,-500.0,0.00023561,3]
[349712659,1737389451270,-2492.35,0.00023561,3]
[349712662,1737389451279,-530.51,0.00023561,3]
[349712663,1737389451289,-500.0,0.00023561,3]
[349712666,1737389451299,-531.22,0.00023561,3]
[349712668,1737389451308,-713.46,0.00023561,3]
[349712670,1737389451318,-500.0,0.00023561,3]
[349712672,1737389451327,-1135.39,0.00023643,3]
[349712674,1737389451338,-1608.7309395,0.00023659,3]
[349712676,1737389451347,-316.25854152,0.00023696,3]
[349712678,1737389451357,-500.0,0.00023698,3]
[349712680,1737389451367,-2492.35,0.00023698,3]
[349712682,1737389451376,-530.51,0.00023698,3]
[349712684,1737389451385,-368.1193368,0.00023698,3]
[349712685,1737389451396,-531.22,0.00023698,3]
[349712688,1737389451407,-713.46,0.00023698,3]
[349712689,1737389451418,-500.0,0.00023698,3]
[349712691,1737389451427,-300.0,0.000237,11]
[349712694,1737389451437,-587.0,0.00023712,2]
[349712696,1737389451447,-395.0,0.00023731,2]
[349712698,1737389451456,-1135.39,0.0002378,3]
[349712700,1737389451466,-1608.7309395,0.00023797,3]
[349712702,1737389451476,-2636.0,0.00023806,7]
[349712704,1737389451489,-451.51201976,0.00023835,3]
[349712706,1737389451499,-2492.35,0.00023835,3]
[349712708,1737389451509,-530.51,0.00023835,3]
[349712710,1737389451519,-531.22,0.00023835,3]
[349712712,1737389451528,-713.46,0.00023835,3]
[349712714,1737389451538,-500.0,0.00023835,3]
[349712715,1737389451547,-1135.39,0.00023917,3]
[349712717,1737389451557,-1608.7309395,0.00023934,3]
[349712719,1737389451567,-500.0,0.00023971,3]
[349712721,1737389451576,-500.0,0.00023971,3]
[349712723,1737389451586,-2492.35,0.00023972,3]
[349712725,1737389451595,-530.51,0.00023972,3]
[349712727,1737389451604,-531.22,0.00023972,3]
[349712729,1737389451613,-713.46,0.00023972,3]
[349712731,1737389451623,-500.0,0.00023972,3]
[349712733,1737389451636,-1000.0,0.00024,24]
[349712735,1737389451646,-2998.29999998,0.00024,2]
[349712737,1737389451657,-2005.0,0.00024,15]
[349712739,1737389451666,-2018.0,0.00024,15]
[349712741,1737389451677,-1641.373,0.00024013,2]
[349712743,1737389451687,-1135.39,0.00024054,3]
[349712745,1737389451696,-1608.7309395,0.00024072,3]
[349712747,1737389451706,-500.0,0.00024099,3]
[349712749,1737389451716,-500.0,0.00024099,3]
[349712751,1737389451726,-26535.89471278,0.000241,2]
[349712753,1737389451739,-2492.35,0.00024109,3]
[349712755,1737389451750,-530.51,0.00024109,3]
[349712757,1737389451759,-531.22,0.00024109,3]
[349712759,1737389451771,-713.46,0.00024109,3]
[349712761,1737389451786,-500.0,0.00024109,3]
[349712763,1737389451795,-1135.39,0.00024191,3]
[349712765,1737389451806,-500.0,0.00024199,3]
[349712767,1737389451816,-500.0,0.00024199,3]
[349712769,1737389451825,-1608.7309395,0.0002421,3]
[349712771,1737389451835,-2492.35,0.00024246,3]
[349712773,1737389451845,-530.51,0.00024246,3]
[349712775,1737389451854,-531.22,0.00024246,3]
[349712777,1737389451864,-713.46,0.00024246,3]
[349712779,1737389451874,-500.0,0.00024246,3]
[349712782,1737389451884,-162.02968336,0.00024261,3]
[349712783,1737389451893,-277.74646764,0.00024261,3]
[349712786,1737389451903,-151.0,0.00024262,7]
[349712788,1737389451913,-151.0,0.00024262,7]
[349712790,1737389451924,-151.0,0.00024262,7]
[349712792,1737389451934,-151.0,0.00024262,7]
[349712794,1737389451943,-259.822071,0.00024262,7]
[349712796,1737389451953,-500.0,0.00024265,2]
[349712798,1737389451963,-500.0,0.00024265,2]
[349712800,1737389451973,-500.0,0.00024265,14]
[349712802,1737389451985,-151.0,0.00024268,7]
[349712804,1737389451995,-151.0,0.00024268,7]
[349712806,1737389452005,-301.999999,0.00024268,7]
[349712807,1737389452014,-10643.79312944,0.00024268,5]
[349712809,1737389452024,-4032.38606045,0.00024268,5]
[349712811,1737389452034,-395870.76096348,0.00024268,61]
[349712820,1737389452138,-23035.035112,0.00024268,61]
[349712822,1737389452150,-77855.36840011,0.00024268,61]
[349712824,1737389452161,-573.13936019,0.00024268,61]
[349712826,1737389452172,-14523.86056434,0.00024268,61]
[349712827,1737389452183,-6555.2026656,0.00024268,61]
[349712832,1737389452233,-10535.0,0.00024268,61]
[349712834,1737389452244,-10603.0,0.00024268,61]
[349712836,1737389452255,-633.38194526,0.00024268,61]
[349712842,1737389452316,-1134.11054742,0.00021698,2]
[349712843,1737389452326,-4128.38945258,0.00024268,61]
[349712845,1737389452338,-257487.2067608,0.00024268,61]
[349712847,1737389452359,-399.96954093,0.00024268,61]
[349712848,1737389452394,-15932.007025,0.00024268,61]
[349712849,1737389452408,-41574.34572464,0.00024268,61]
[349712850,1737389452419,-21233.0,0.00024268,61]
[349713059,1737389456335,166.280411,0.00013973,2]
[349713087,1737390569264,166.146098,0.00013973,2]
[349713182,1737390637249,-500.0,0.00018112,2]
[349713184,1737390637259,-500.0,0.00018295,2]
[349713186,1737390637268,-291.33748797,0.000189,2]
[349713188,1737390637277,-1068.12,0.0002,2]
[349713190,1737390637288,-266.3560882,0.00020155,2]
[349713192,1737390637297,-4000.0,0.00020228,10]
[349713194,1737390637308,-647.9549893,0.00020317,2]
[349713196,1737390637317,-236.88796673,0.00020332,2]
[349713198,1737390637328,-597.3940893,0.00020429,2]
[349713199,1737390637337,-500.0,0.00020432,2]
[349713201,1737390637347,-796.94783488,0.00020485,2]
[349713203,1737390637356,-784.7045,0.0002189,3]
[349713205,1737390637365,-216.37483084,0.00021916,2]
[349713206,1737390637375,-159.11,0.00021917,2]
[349713208,1737390637384,-500.0,0.00021917,3]
[349713210,1737390637393,-500.0,0.00021917,3]
[349713212,1737390637403,-500.0,0.00021917,3]
[349713214,1737390637412,-500.94244147,0.00021917,3]
[349713216,1737390637421,-512.19154465,0.00021917,3]
[349713217,1737390637430,-500.0,0.00021917,3]
[349713219,1737390637439,-506.07222546,0.00021917,3]
[349713221,1737390637448,-506.35461972,0.00021917,3]
[349713223,1737390637457,-500.0,0.00021917,3]
[349713225,1737390637467,-500.0,0.00021917,3]
[349713227,1737390637477,-94.39181079,0.00021917,3]
[349713232,1737390637500,-406.53801196,0.00021917,3]
[349713233,1737390637509,-33.34899687,0.00021917,3]
[349713236,1737390637521,-470.1170032,0.00021917,3]
[349713238,1737390637532,-500.0,0.00021917,3]
[349713240,1737390637544,-639.04437251,0.00021917,3]
[349713242,1737390637561,-500.9208057,0.00021917,3]
[349713244,1737390637574,-364.65454569,0.00021917,3]
[349713248,1737390637587,-500.0,0.00021917,3]
[349713251,1737390637599,-500.0,0.00021917,3]
[349713254,1737390637611,-501.10330071,0.00021917,3]
[349713257,1737390637621,-500.0,0.00021917,3]
[349713260,1737390637632,-500.0,0.00021917,3]
[349713263,1737390637643,-500.0,0.00021917,3]
[349713267,1737390637656,-500.0,0.00021917,3]
[349713270,1737390637668,-500.0,0.00021917,3]
[349713273,1737390637680,-500.0,0.00021917,3]
[349713277,1737390637691,-500.0,0.00021917,3]
[349713282,1737390637704,-269.30526095,0.00021917,3]
[349713286,1737390637717,-500.0,0.00021917,3]
[349713290,1737390637729,-500.0,0.00021917,3]
[349713294,1737390637741,-494.7571562,0.00021917,3]
[349713299,1737390637753,-500.0,0.00021917,3]
[349713303,1737390637765,-634.17691208,0.00021917,3]
[349713306,1737390637776,-500.0,0.00021917,3]
[349713309,1737390637790,-250.46242938,0.00021917,3]
[349713312,1737390637805,-503.22932378,0.00021917,3]
[349713315,1737390637817,-500.0,0.00021917,3]
[349713317,1737390637830,-498.41143554,0.00021917,3]
[349713319,1737390637842,-500.0,0.00021917,3]
[349713321,1737390637854,-500.0,0.00021917,3]
[349713323,1737390637865,-200.0,0.00021917,3]
[349713325,1737390637876,-500.0,0.00021917,3]
[349713327,1737390637887,-500.0,0.00021917,3]
[349713329,1737390637900,-629.15859415,0.00021917,3]
[349713331,1737390637913,-500.0,0.00021917,3]
[349713333,1737390637926,-500.0,0.00021917,3]
[349713335,1737390637937,-500.0,0.00021917,3]
[349713337,1737390637948,-500.0,0.00021917,3]
[349713339,1737390637959,-500.0,0.00021917,3]
[349713341,1737390637969,-500.0,0.00021917,3]
[349713343,1737390637980,-500.0,0.00021917,3]
[349713345,1737390637990,-500.0,0.00021917,2]
[349713347,1737390638000,-500.0,0.00021917,3]
[349713349,1737390638016,-500.0,0.00021917,3]
[349713351,1737390638026,-500.0,0.00021917,3]
[349713353,1737390638038,-500.0,0.00021917,3]
[349713355,1737390638051,-500.0,0.00021917,3]
[349713357,1737390638065,-500.0,0.00021917,3]
[349713359,1737390638076,-500.0,0.00021917,3]
[349713361,1737390638088,-500.0,0.00021917,3]